Cogmind - Beta 12 @@@ ROGUE MODE // 2023.08.03 @ 22:06:02 Player: Roxy Result: Destroyed by G-47 Trooper with Particle Gun Performance ------------- Evolutions (2) 1000 Regions Visited (5) 1000 Robots Destroyed (8) 40 Value Destroyed (139) 139 Prototype IDs (0) 0 Alien Tech Used (0) 0 Bonus (0) 0 TOTAL SCORE: 2179 Bonus ------- None Cogmind --------- Core Integrity 0/550 Matter 300/300 Energy 100/100 System Corruption 0% Temperature Cool (9) Movement Core (350) Ox6 Location -8/Materials Parts ------- > --- POWER (2) -------- (None) > --- PROPULSION (3) --- (None) > --- UTILITY (3) ------ Large Storage Unit > --- WEAPON (3) ------- (None) > --- INVENTORY (15) --- Small Storage Unit Peak State ------------ > --- POWER ------------ Ion Engine > --- PROPULSION ------- Wheel Wheel > --- UTILITY ---------- Large Storage Unit Structural Scanner > --- WEAPON ----------- EM Pulse Gun Heavy EM Pulse Gun Medium Laser > --- INVENTORY -------- Light Ion Engine Compact Wheel Small Storage Unit Assault Rifle [Rating: 9] Favorites ----------- Power Ion Engine Engine Ion Engine Propulsion Wheel Wheel Wheel Utility Large Storage Unit Device Structural Scanner Storage Large Storage Unit Weapon Medium Laser Energy Gun Medium Laser Ballistic Gun Assault Rifle Build | -11 -10 -10 -9 -9 -8 ------- Run | Jun Mat Min Mat Min Mat Slots Evolved 4 | . . . 2 . 2 Power 1 | . . . . . 1 Propulsion 1 | . . . . . 1 Utility 1 | . . . 1 . . Weapon 1 | . . . 1 . . Parts Attached 12 | 4 4 . 1 . 3 Power 2 | 1 . . . . 1 Engine 2 | 1 . . . . 1 Core . | . . . . . . Reactor . | . . . . . . Propulsion 3 | 2 . . . . 1 Treads . | . . . . . . Leg . | . . . . . . Wheel 3 | 2 . . . . 1 Hover . | . . . . . . Flight . | . . . . . . Utility 3 | 1 2 . . . . Device 1 | . 1 . . . . Storage 2 | 1 1 . . . . Processor . | . . . . . . Hackware . | . . . . . . Protection . | . . . . . . Artifact . | . . . . . . Weapon 4 | . 2 . 1 . 1 Energy Gun 3 | . 2 . 1 . . Energy Cannon . | . . . . . . Ballistic Gun 1 | . . . . . 1 Ballistic Cannon . | . . . . . . Launcher . | . . . . . . Special Weapon . | . . . . . . Impact Weapon . | . . . . . . Slashing Weapon . | . . . . . . Piercing Weapon . | . . . . . . Special Melee Weapon . | . . . . . . Unidentified Prototypes . | . . . . . . Parts Lost 10 | . . . . . 10 Power 2 | . . . . . 2 Propulsion 3 | . . . . . 3 Utility 1 | . . . . . 1 Weapon 4 | . . . . . 4 Highest Loss Streak 10 | . . . . . 10 To Critical Strikes . | . . . . . . Average Slot Usage (%) 81 | . 92 100 82 88 45 Engine 11 | . 14 14 11 11 5 Wheel 22 | . 28 28 22 22 9 Device 8 | . 7 14 11 11 6 Storage 12 | . 14 14 11 11 9 Energy Gun 25 | . 28 28 27 33 12 Naked Turns . | . . . . . . Heaviest Build 33 | 10 30 30 33 33 33 Greatest Support 20 | 20 20 20 20 20 20 Greatest Overweight (x) 6 | 1 1 1 1 1 6 Average Overweight (x) . | . . 1 1 1 2 Largest Inventory Capacity 15 | 8 15 15 15 15 15 Average Capacity 14 | 6 14 15 15 15 15 Most Carried 5 | 5 4 4 5 4 4 Average Carried 3 | 3 3 4 4 4 2 Final Capacity 15 | 8 15 15 15 15 15 Final Carried 4 | 4 4 4 4 4 1 Class Distribution -------------------- 75% | Mutant 25% | Skirmisher Dominant Class ---------------- Mutant | -10/Materials Mutant | -10/Mines Skirmisher | -9/Materials Skirmisher | -9/Mines Mutant | -8/Materials Resources | -11 -10 -10 -9 -9 -8 ----------- Run | Jun Mat Min Mat Min Mat Matter Collected 317 | 210 70 . . . 37 Remotely . | . . . . . . Salvage Created 160 | . 75 . . . 85 Parts 13 | . 9 . . . 4 Haulers Intercepted . | . . . . . . Recyclers Shooed . | . . . . . . Parts Field Recycled . | . . . . . . Retrieved Matter . | . . . . . . Parts Self-Destructed . | . . . . . . Prevented . | . . . . . . Kills | -11 -10 -10 -9 -9 -8 ------- Run | Jun Mat Min Mat Min Mat Combat Hostiles Destroyed 6 | . 3 . . . 3 Guns 6 | . 3 . . . 3 Classes Destroyed 4 | . 3 . . . 1 Operator 1 | . 1 . . . . Watcher 1 | . 1 . . . . Swarmer 5 | . 3 . . . 2 Grunt 1 | . . . . . 1 Best Kill Streak 3 | . 2 . . . 3 Combat Bots Only 3 | . 2 . . . 3 Max Kills in Single Turn 2 | . 1 . . . 2 Gunslinging . | . . . . . . Exploded . | . . . . . . Melee . | . . . . . . Uniques/NPCs Destroyed . | . . . . . . Combat | -11 -10 -10 -9 -9 -8 -------- Run | Jun Mat Min Mat Min Mat Damage Taken 1223 | . 178 . . . 1045 Core 611 | . 57 . . . 554 Absorbed by Shields . | . . . . . . Core Remaining (%) 92 | 100 . 77 . 100 . Volleys Fired 31 | . 15 . . . 16 Largest 3 | . 2 . . . 3 Hottest 135 | . 90 . . . 135 Shots Fired 64 | . 30 . . . 34 Gun 64 | . 30 . . . 34 Cannon . | . . . . . . Launcher . | . . . . . . Special . | . . . . . . Kinetic 9 | . . . . . 9 Thermal 28 | . 15 . . . 13 Explosive . | . . . . . . Electromagnetic 27 | . 15 . . . 12 Robot Hit Streak 7 | . 3 . . . 7 Robot Miss Streak 8 | . 8 . . . 3 Penetration Max . | . . . . . . Secondary Targets 1 | . 1 . . . . Max Gunslinging Chain 1 | . 1 . . . . Shots Hit Robots 29 | . 12 . . . 17 Core Hits 12 | . 5 . . . 7 Critical Kills . | . . . . . . Critical Parts Destroyed . | . . . . . . Critical Strikes 3 | . 2 . . . 1 Burn 2 | . 1 . . . 1 Corrupt 1 | . 1 . . . . Melee Attacks . | . . . . . . Impact . | . . . . . . Slashing . | . . . . . . Piercing . | . . . . . . Sneak Attacks . | . . . . . . Combat Hostiles . | . . . . . . Follow-up Attacks . | . . . . . . Damage Inflicted 516 | . 199 . . . 317 Guns 473 | . 156 . . . 317 Cannons . | . . . . . . Explosions 43 | . 43 . . . . Melee . | . . . . . . Ramming . | . . . . . . Kinetic 99 | . . . . . 99 Thermal 258 | . 130 . . . 128 Explosive . | . . . . . . Electromagnetic 159 | . 69 . . . 90 Impact . | . . . . . . Slashing . | . . . . . . Piercing . | . . . . . . Highest Corruption . | . . . . . . Average Corruption . | . . . . . . Corruption Purged . | . . . . . . Corruption Blocked . | . . . . . . Overload Shots . | . . . . . . Overflow Damage . | . . . . . . Projectiles . | . . . . . . Explosions . | . . . . . . Melee . | . . . . . . Knockbacks . | . . . . . . Impact . | . . . . . . Kinetic . | . . . . . . Secondary . | . . . . . . Self-Inflicted Damage . | . . . . . . Shots . | . . . . . . Rammed . | . . . . . . Targets Rammed . | . . . . . . Kicked . | . . . . . . Crushed . | . . . . . . Highest Temperature 381 | . 250 . . . 381 Average Temperature 139 | . 96 . . . 177 Received Heat Transfer 477 | . . . . . 477 Siege Activations . | . . . . . . Robots Corrupted . | . . . . . . Combat Hostiles . | . . . . . . Parts Fried . | . . . . . . Impact Corruptions . | . . . . . . Robots Melted . | . . . . . . Combat Hostiles . | . . . . . . Parts Melted . | . . . . . . Heat Transferred 827 | . 383 . . . 444 Parts Sabotaged . | . . . . . . Parts Stolen . | . . . . . . Parts Stripped . | . . . . . . Power Chain Reactions 1 | . 1 . . . . Missiles Intercepted . | . . . . . . Alert | -11 -10 -10 -9 -9 -8 ------- Run | Jun Mat Min Mat Min Mat Peak Influence 131 | . 131 51 19 7 55 Initial 51 | . . 51 19 7 2 Average 19 | . 26 51 19 7 17 Maximum Alert Level . | . . . . . . Low Security (%) 100 | 100 100 100 100 100 100 Level 1 . | . . . . . . Level 2 . | . . . . . . Level 3 . | . . . . . . Level 4 . | . . . . . . Level 5 . | . . . . . . High Security . | . . . . . . Max Security . | . . . . . . Squads Dispatched 1 | . . . . . 1 Investigation . | . . . . . . Extermination . | . . . . . . Reinforcement 1 | . . . . . 1 Assault . | . . . . . . Garrison . | . . . . . . Intercept . | . . . . . . Searches Triggered . | . . . . . . Construction Impeded . | . . . . . . Haulers Reinforced . | . . . . . . Active Scanning Responses . | . . . . . . Cargo Convoy Interrupts . | . . . . . . Stealth | -11 -10 -10 -9 -9 -8 --------- Run | Jun Mat Min Mat Min Mat Distress Signals 2 | . 1 . . . 1 Communications Jammed . | . . . . . . Distress Signals . | . . . . . . Times Spotted 15 | . 6 . . . 9 Peak Tracking Total 9 | . 3 . . . 9 Tactical Retreats 1 | . . . . . 1 Traps | -11 -10 -10 -9 -9 -8 ------- Run | Jun Mat Min Mat Min Mat Traps Triggered . | . . . . . . Indirectly . | . . . . . . Trap Hack Attempts . | . . . . . . Triggered . | . . . . . . Disarmed . | . . . . . . Reprogrammed . | . . . . . . Reused . | . . . . . . Traps Extracted . | . . . . . . Installed . | . . . . . . Triggered . | . . . . . . Machines | -11 -10 -10 -9 -9 -8 ---------- Run | Jun Mat Min Mat Min Mat Machines Disabled 2 | . 2 . . . . Max in Single Turn 1 | . 1 . . . . Machines Repaired . | . . . . . . Machines Sabotaged . | . . . . . . Overloaded Fab Kills . | . . . . . . Hacking | -11 -10 -10 -9 -9 -8 --------- Run | Jun Mat Min Mat Min Mat Machines Accessed 1 | . 1 . . . . Terminals 1 | . 1 . . . . Fabricators . | . . . . . . Repair Stations . | . . . . . . Recycling Units . | . . . . . . Scanalyzers . | . . . . . . Garrison Access . | . . . . . . Total Hacks 1 | . 1 . . . . Successful 1 | . 1 . . . . Failed . | . . . . . . Catastrophic . | . . . . . . Database Lockouts . | . . . . . . Manual . | . . . . . . Terminals 1 | . 1 . . . . Fabricators . | . . . . . . Repair Stations . | . . . . . . Recycling Units . | . . . . . . Scanalyzers . | . . . . . . Garrison Access . | . . . . . . Terminal Hacks 1 | . 1 . . . . Record 1 | . 1 . . . . Fabricator Hacks . | . . . . . . Repair Station Hacks . | . . . . . . Recycling Unit Hacks . | . . . . . . Scanalyzer . | . . . . . . Garrison Access Hacks . | . . . . . . Unauthorized Hacks . | . . . . . . Terminals . | . . . . . . Fabricators . | . . . . . . Repair Stations . | . . . . . . Recycling Units . | . . . . . . Scanalyzers . | . . . . . . Garrison Access . | . . . . . . Data Cores Recovered 1 | . 1 . . . . Used 1 | . 1 . . . . Hacking Detections . | . . . . . . Full Trace Events . | . . . . . . Feedback Events . | . . . . . . Feedback Blocked . | . . . . . . Robot Schematics Acquired . | . . . . . . Robots Built . | . . . . . . Authchips . | . . . . . . Time . | . . . . . . Total Robot Build Rating . | . . . . . . Part Schematics Acquired . | . . . . . . Parts Built . | . . . . . . Authchips . | . . . . . . Time . | . . . . . . Total Part Build Rating . | . . . . . . Parts Repaired . | . . . . . . Time . | . . . . . . Parts Recycled . | . . . . . . Recycled Matter . | . . . . . . Retrieved Matter . | . . . . . . Retrieved Components . | . . . . . . Parts Scanalyzed . | . . . . . . Part Schematics Acquired . | . . . . . . Parts Damaged . | . . . . . . Bothacking | -11 -10 -10 -9 -9 -8 ------------ Run | Jun Mat Min Mat Min Mat Used RIF Installer . | . . . . . . Robots Hacked . | . . . . . . Non-combat . | . . . . . . Combat . | . . . . . . Robot Hacks Applied . | . . . . . . Relay Couplers Released . | . . . . . . Fabnet Peak Effective % . | . . . . . . Robots Rewired . | . . . . . . Allies Hacked . | . . . . . . Hacks Repelled . | . . . . . . Allies | -11 -10 -10 -9 -9 -8 -------- Run | Jun Mat Min Mat Min Mat Total Allies . | . . . . . . Largest Group . | . . . . . . Highest-Rated Group . | . . . . . . Highest-Rated Ally . | . . . . . . Total Orders . | . . . . . . Ally Attacks . | . . . . . . Total Damage . | . . . . . . Kills . | . . . . . . Allies Corrupted . | . . . . . . Allies Melted . | . . . . . . Intel | -11 -10 -10 -9 -9 -8 ------- Run | Jun Mat Min Mat Min Mat Robot Analysis Total . | . . . . . . Derelict Logs Recovered 2 | . . . . 2 . Drone Launches . | . . . . . . Drone Recoveries . | . . . . . . Exploration | -11 -10 -10 -9 -9 -8 ------------- Run | Jun Mat Min Mat Min Mat Turns Passed 647 | 65 283 20 74 88 117 Spaces Moved 526 | 69 221 21 76 93 46 Core 16 | 7 . . . . 9 Treads . | . . . . . . Legs . | . . . . . . Wheels 510 | 62 221 21 76 93 37 Hover . | . . . . . . Flight . | . . . . . . Fastest Speed 50 | 50 80 95 95 95 95 Average Speed 97 | 77 94 95 95 95 150 Slowest Speed 350 | 100 95 95 95 95 350 Overloaded Moves . | . . . . . . Propulsion Burnouts . | . . . . . . Robots Hopped . | . . . . . . Cave-ins Triggered . | . . . . . . Exploration Rate (%) 15 | 4 36 6 8 34 4 Regions Visited 5 Branch Regions 2 Pre-discovered Areas . | . . . . . . Known Exits Taken 1 | . . . . 1 . Unknown Exits Taken 4 | 1 1 1 1 . . Scrap Searched . | . . . . . . Spaces Dug . | . . . . . . Terrain Destroyed 4 | . 4 . . . . Melee . | . . . . . . Projectile . | . . . . . . AOE 4 | . 4 . . . . Terrain Rammed . | . . . . . . Walls Destroyed . | . . . . . . Machines Disabled . | . . . . . . Actions | -11 -10 -10 -9 -9 -8 --------- Run | Jun Mat Min Mat Min Mat Total 599 | 80 265 20 77 92 65 Wait 23 | . 23 . . . . Move 521 | 68 220 20 75 92 46 Hop . | . . . . . . Pick Up 12 | 8 3 . 1 . . Fast Attach . | . . . . . . Attach 11 | 4 3 . 1 . 3 Detach . | . . . . . . Swap 1 | . 1 . . . . Drop . | . . . . . . Fire 31 | . 15 . . . 16 Melee . | . . . . . . Ram . | . . . . . . Kick . | . . . . . . Crush . | . . . . . . Escape Stasis . | . . . . . . Rewire . | . . . . . . Trap . | . . . . . . Miscellaneous . | . . . . . . Route ------- -11/Junkyard -10/Materials -10/Mines -9/Materials -9/Mines -8/Materials (discovered 1 exit: Fac) History --------- Turn | Location | Event 30 | -11/Junkyard | Discovered new exit (range 16) 66 | -11/Junkyard | Entered Materials 301 | -10/Materials | Build established: Mutant 314 | -10/Materials | Discovered new exit (range 8) 349 | -10/Materials | Entered Mines 360 | -10/Mines | Discovered new exit (range 8) 369 | -10/Mines | Entered Materials 369 | -9/Materials | Evolved 2 slots: Utility x1, Weapon x1 429 | -9/Materials | Discovered new exit (range 16) 443 | -9/Materials | Entered Mines 489 | -9/Mines | Identified exit to Materials 518 | -9/Mines | Learned 2 Materials zone layouts 531 | -9/Mines | Entered Materials 531 | -8/Materials | Evolved 2 slots: Power x1, Propulsion x1 532 | -8/Materials | Identified exit to Factory 610 | -8/Materials | Core integrity fell below 50% 639 | -8/Materials | Core integrity fell below 20% 648 | -8/Materials | Lost 10 parts (2p3n1u4w) 648 | -8/Materials | Destroyed by G-47 Trooper with Particle Gun Last Messages --------------- Wheel destroyed. S-10 Pest suffers critical hit (Burn). Destroyed Flight Unit. S-10 Pest destroyed. Ion Engine destroyed. Critical hit (Burn: +37). Med. Laser destroyed. Critical hit (Burn: +37). G-47 Trooper destroyed. Critical hit (Burn: +37). Assault Rifle destroyed. Acquired 15 matter. Acquired 22 matter. Lgt. Ion Engine destroyed. M-13 Machinist repairs Flight Unit. Com. Wheel destroyed. Structural Scanner destroyed. K-01 Serf collects debris. K-01 Serf destroyed. Critical hit (Burn: +37). Map ----- +----------------------------------------------------+ | ???????????####### #####??????????????????????? | | ????????????????## ##?????????????????????????? | | ????????????????# #?????????????????????????? | | ???????????????????????????????????????????????? | | ???????????????????????????????????????????????? | | ???????????????????????????????????????????????? | | ???????????????????????????????????????????????? | | ???????????????????????????????????????????????? | | ???????????????????????????????????????????????? | | ???????????????????????????????????????????????? | | ???????????????????????????????????????????????? | | ???????????????????????????????????????????????? | | ???????????????????????????????????????????????? | | ???????????????????????????????????????????????? | | ?????????? ?????? ##???????????????????? | | ??????????####+########## ##########???????????? | | ?????????? # ######## ##########???????????? | | ?????????? # ! ???????????? | | ?????????? + ???????????? | | ?????????? # ???????????? | | ?????????? # = ###g####### ##??????????????? | | ?????????? ## [%## ## ? ##??????????????? | | ?????????? ## **## #????????????????????? | | ???????????## % ## #????????????????????? | | ???????????## ## = ## #???????????????? | | ???????????## ## *@ s #???????????????? | | ??????????### ## ## #???????????????? | | ???########## ###########??+##???????????????? | | ???######### ####### ?????????????????????? | | ???## ##????????????????????????????? | | ???## T ##????????????????????????????? | | ???## ##????????????????????????????? | | ???######### ##????????????????????????????? | | ???################????????????????????????????? | | ??????????#########????????????????????????????? | | ???????????????????????????????????????????????? | | ???????????????????????????????????????????????? | | ???????????????????????????????????????????????? | | ???????????????????????????????????????????????? | | ???????????????????????????????????????????????? | | ???????????????????????????????????????????????? | | ???????????????????????????????????????????????? | | ???????????????????????????????????????????????? | | ???????????????????????????????????????????????? | | ???????????????????????????????????????????????? | | ???????????????????????????????????????????????? | | ???????????????????????????????????????????????? | | ???????????????????????????????????????????????? | | ???????????????????????????????????????????????? | | ???????????????????????????????????????????????? | +----------------------------------------------------+ Best States ------------- Heat Dissipation 31 Energy Generation 10 Energy Capacity 250 Matter Stores 300 Matter Capacity 300 Sight Range 16 Terrain Scan Density 10 Evasion (%) 44 Item Schematics ----------------- None Robot Schematics ------------------ None Fabricated ------------ Nothing Alien Tech Used ----------------- None Achievements -------------- Dynamic Key Challenges ------------ None Game ------ Seed SwarmLinkedFlakker Manual? 0 Play Time 00:10:33 Cumulative 2.9 hours Start 2023.08.03 @ 21:55:28 End 2023.08.03 @ 22:06:02 Sessions 1 Manual Loads 0 Difficulty Rogue Special Mode None Game No. 4 Rogue 4 Adventurer 0 Explorer 0 Win Type - Total 0 Types 0/0/0/0/0/0/0/0/0 Lore% 4 Gallery% 7 Achievement% 7 Wizard Run 0 Options --------- ASCII 0 Keyboard 0 Movement Mouse Keybinds 0 Fullscreen 1 Font 18/SmallcapsGlow Map View 76x50 Tactical HUD 0 Map Filters NONE Filters NONE Steam 1 RUN: 8cbbdfdd-cedb-476b-a74e-9772c11b1cab